fUST/lending_fUST_20240119
["ID","MTS","AMOUNT","RATE_DAILY","PERIOD"]
[312143067,1705667456739,-500.0,0.0002996,2]
[312143068,1705667456750,-558.98499272,0.0002996,2]
[312143069,1705667456762,-500.0,0.0002996,2]
[312143070,1705667456774,-500.0,0.0002996,2]
[312143071,1705667456784,-212.7852503,0.0002996,2]
[312143072,1705667456796,-500.0,0.0002996,2]
[312143073,1705667456808,-500.0,0.0002996,2]
[312143074,1705667456819,-500.0,0.0002996,2]
[312143075,1705667456829,-500.0,0.0002996,2]
[312143076,1705667456840,-500.0,0.0002996,2]
[312143077,1705667456851,-523.89688111,0.0002996,2]
[312143078,1705667456863,-500.0,0.0002996,2]
[312143079,1705667456875,-500.51110495,0.0002996,2]
[312143080,1705667456887,-500.0,0.0002996,2]
[312143081,1705667456898,-500.0,0.0002996,2]
[312143082,1705667456911,-500.0,0.0002996,2]
[312143083,1705667456922,-500.0,0.0002996,2]
[312143084,1705667456935,-500.0,0.0002996,2]
[312143085,1705667456946,-500.0,0.0002996,14]
[312143086,1705667456959,-500.0,0.0002996,2]
[312143087,1705667456972,-500.0,0.0002996,2]
[312143088,1705667456983,-500.0,0.0002996,2]
[312143089,1705667456994,-500.0,0.0002996,2]
[312143090,1705667457007,-500.0,0.0002996,2]
[312143091,1705667457018,-500.0,0.0002996,2]
[312143092,1705667457030,-500.0,0.0002996,2]
[312143093,1705667457041,-633.835,0.0002996,2]
[312143094,1705667457052,-407.97663313,0.0002996,2]
[312143095,1705667457063,-500.0,0.0002996,2]
[312143096,1705667457074,-500.0,0.0002996,2]
[312143097,1705667457086,-187.46119069,0.0002996,2]
[312143098,1705667457097,-500.0,0.0002996,2]
[312143099,1705667457108,-500.0,0.0002996,2]
[312143100,1705667457119,-500.0,0.0002996,2]
[312143101,1705667457131,-504.88440796,0.0002996,2]
[312143102,1705667457142,-737.33,0.0002996,2]
[312143103,1705667457153,-500.0,0.0002996,2]
[312143104,1705667457165,-500.0,0.0002996,2]
[312143105,1705667457176,-500.0,0.0002996,2]
[312143106,1705667457188,-595.41759042,0.0002996,2]
[312143107,1705667457199,-500.0,0.0002996,2]
[312143108,1705667457210,-494.87615425,0.0002996,2]
[312143109,1705667457222,-500.0,0.0002996,2]
[312143110,1705667457234,-500.0,0.0002996,2]
[312143111,1705667457245,-500.0,0.0002996,2]
[312143112,1705667457256,-507.52266502,0.0002996,2]
[312143113,1705667457268,-501.76139814,0.0002996,2]
[312143114,1705667457279,-1967.74,0.0002996,2]
[312143115,1705667457290,-500.0,0.0002996,2]
[312143116,1705667457302,-500.0,0.0002996,2]
[312143117,1705667457314,-2476.54,0.0002996,2]
[312143118,1705667457325,-500.0,0.0002996,2]
[312143119,1705667457371,-500.0,0.0002996,2]
[312143120,1705667457382,-502.28537969,0.0002996,2]
[312143121,1705667457394,-501.64392268,0.0002996,2]
[312143122,1705667457406,-500.0,0.0002996,2]
[312143123,1705667457417,-502.48230786,0.0002996,2]
[312143124,1705667457428,-500.0,0.0002996,2]
[312143125,1705667457440,-500.0,0.0002996,2]
[312143126,1705667457451,-500.0,0.0002996,2]
[312143127,1705667457463,-581.11900681,0.0002996,2]
[312143128,1705667457474,-503.17847827,0.0002996,2]
[312143129,1705667457486,-500.0,0.0002996,2]
[312143130,1705667457497,-500.0,0.0002996,2]
[312143131,1705667457509,-500.0,0.0002996,2]
[312143132,1705667457520,-200.0,0.0002996,2]
[312143133,1705667457531,-500.0,0.0002996,2]
[312143134,1705667457543,-502.88614467,0.0002996,2]
[312143135,1705667457555,-500.0,0.0002996,2]
[312143136,1705667457568,-500.76349209,0.0002996,2]
[312143137,1705667457579,-500.0,0.00029962,2]
[312143138,1705667457590,-500.0,0.00029962,2]
[312143139,1705667457602,-500.0,0.00029962,2]
[312143140,1705667457614,-500.0,0.00029963,2]
[312143141,1705667457625,-500.0,0.00029963,2]
[312143142,1705667457637,-154.95351395,0.00029988,2]
[312143143,1705667457648,-688.82444192,0.00029988,2]
[312143144,1705667457660,-155.52830772,0.00029989,2]
[312143145,1705667457671,-154.9690062,0.00029998,2]
[312143146,1705667457682,-231.29116305,0.00029998,2]
[312143147,1705667457693,-193.00215354,0.00029998,2]
[312143148,1705667457703,-155.37889533,0.00029998,2]
[312143149,1705667457714,-164.65058158,0.00029998,2]
[312143150,1705667457727,-154.92253873,0.00029998,2]
[312143151,1705667457738,-1543.14032271,0.00029998,2]
[312143152,1705667457750,-802.76027922,0.00029999,2]
[312143153,1705667457761,-1384.73231582,0.00029999,2]
[312143154,1705667457773,-441966.1541149,0.0003,30]
[312143155,1705667457982,-10202.84952288,0.0003,30]
[312143156,1705667457997,-194394.65411426,0.0003,30]
[312143157,1705667458008,-1000.0,0.0003,2]
[312143158,1705667458018,-1000.0,0.0003,4]
[312143159,1705667458030,-534.83211663,0.0003,3]
[312143160,1705667458042,-251.67159159,0.0003,2]
[312143161,1705667458054,-326.58097042,0.0003,6]
[312143162,1705667458066,-688.01285151,0.0003,4]
[312143163,1705667458078,-154.87609912,0.0003,2]
[312143164,1705667458090,-45064.244,0.0003,4]
[312143165,1705667458102,-4999.99,0.0003,2]
[312143166,1705667458113,-157.68168775,0.0003,4]
[312143167,1705667458124,-166.73517574,0.0003,2]
[312143168,1705667458134,-4999.99,0.0003,2]
[312143169,1705667458145,-2192.42916619,0.0003,2]
[312143170,1705667458156,-214.9799205,0.0003,4]
[312143171,1705667458170,-2103.77243551,0.0003,4]
[312143172,1705667458182,-8688.58007148,0.0003,30]
[312143173,1705667458396,-180.04273859,0.00027396,2]
[312143174,1705667458408,-500.0,0.00027397,2]
[312143175,1705667458419,-500.0,0.00027671,2]
[312143176,1705667458431,-1261.94,0.00027945,2]
[312143177,1705667458442,-500.0,0.00027945,2]
[312143178,1705667458452,-1261.94,0.00028219,2]
[312143179,1705667458464,-500.0,0.00028219,2]
[312143180,1705667458477,-1261.94,0.00028493,2]
[312143181,1705667458488,-200.80876799,0.00028493,2]
[312143182,1705667458499,-500.0,0.00028767,2]
[312143183,1705667458510,-1261.94,0.00028767,2]
[312143184,1705667458522,-500.0,0.00029041,2]
[312143185,1705667458533,-1261.94,0.00029041,2]
[312143186,1705667458545,-503.94559309,0.00029315,2]
[312143187,1705667458556,-1261.94,0.00029315,2]
[312143188,1705667458568,-1261.94,0.00029589,2]
[312143189,1705667458582,-1261.94,0.00029863,2]
[312143190,1705667458594,-10648.11011829,0.0003,30]
[312143191,1705667458607,-11647.9762595,0.0003,30]
[312143192,1705667458642,-14215.32559705,0.0003,30]
[312143193,1705667458657,-808.79483229,0.0003,30]
[312143194,1705667458671,-37284.19505476,0.0003,30]
[312143195,1705667458691,-1407.53701439,0.0003,30]
[312143196,1705667458705,-3519.42006617,0.0003,30]
[312143197,1705667458719,-50041.28405935,0.0003,30]
[312143198,1705667458734,-1999.36883247,0.0003,30]
[312143199,1705667459231,-929.1630865,0.0003,30]
[312143200,1705667459246,-614.25999991,0.0003,30]
[312143201,1705667459259,-421.70266541,0.0003,30]
[312143202,1705667459382,-257.30468228,0.00027935,3]
[312143215,1705668435083,-1799.02441093,0.00020842,5]
[312143216,1705668449092,-2813.43161407,0.00020841,2]
[312143217,1705668449118,-332.25813429,0.00020842,5]
[312143218,1705668551109,-154.87609912,0.00020837,2]
[312143219,1705668551131,-1589.24944099,0.00020837,2]
[312143220,1705668551152,-178.65716453,0.00020838,2]
[312143221,1705668551174,-156.04606038,0.00020845,2]
[312143222,1705668551195,-2707.42562247,0.0002095,5]
[312143223,1705668551217,-691.03954956,0.00020951,5]
[312143224,1705668551238,-1472.01199016,0.00021,2]
[312143225,1705668551260,-2273.6749403,0.00022228,2]
[312143226,1705668551282,-24864.88858088,0.00022728,2]
[312143227,1705668554100,-35.11141912,0.00022728,2]
[312143228,1705668554122,-140.02442169,0.00024647,2]
[312143293,1705668634674,-81.29546728,0.00024647,2]
[312143294,1705668634685,-498.00832139,0.0002495,5]
[312143295,1705668634695,-183.327605,0.00024997,2]
[312143297,1705668634706,-2570.40235557,0.00025,2]
[312143298,1705668634716,-271.420818,0.00025144,2]
[312143300,1705668634725,-170.25272059,0.00025263,2]
[312143301,1705668634735,-1259.89321397,0.00025337,2]
[312143304,1705668634776,-320.27530157,0.00025337,2]
[312143305,1705668634786,-1017.68199247,0.00025337,2]
[312143306,1705668634795,-154.98450155,0.00025338,2]
[312143307,1705668634805,-1602.24051039,0.00025338,2]
[312143308,1705668634815,-625.89616453,0.000264,2]
[312143309,1705668634824,-1595.01637802,0.00026847,2]
[312143310,1705668634835,-6865.61602426,0.00027121,2]
[312143311,1705668634845,-7956.19039627,0.00027386,2]
[312143312,1705668634855,-22521.29,0.00027387,3]
[312143313,1705668634865,-688.82444192,0.00027394,2]
[312143314,1705668634875,-606.99127798,0.00027395,2]
[312143315,1705668634885,-1772.13993505,0.00027395,2]
[312143316,1705668634899,-549.47321105,0.00027395,2]
[312143317,1705668634909,-155.37889533,0.00027395,2]
[312143318,1705668634919,-802.76027922,0.00027395,2]
[312143319,1705668634929,-154.92253873,0.00027395,2]
[312143320,1705668634939,-193.00215354,0.00027395,2]
[312143321,1705668634949,-155.23850692,0.00027395,2]
[312143322,1705668634961,-155.49562102,0.00027395,2]
[312143323,1705668634970,-300.68115955,0.00027395,2]
[312143324,1705668634980,-7059.20846776,0.00027395,2]
[312143325,1705668634989,-170.72767926,0.00027395,2]
[312143326,1705668634999,-164.65058158,0.00027395,2]
[312143327,1705668635009,-177.15191446,0.00027395,2]
[312143328,1705668635018,-208.82058628,0.00027395,2]
[312143329,1705668635028,-297.89491392,0.00027395,2]
[312143330,1705668635038,-294.70821043,0.00027395,2]
[312143331,1705668635048,-275.03093429,0.00027395,2]
[312143332,1705668635059,-154.95351395,0.00027395,2]
[312143333,1705668635068,-155.52830772,0.00027395,2]
[312143334,1705668635078,-155.56797486,0.00027395,2]
[312143335,1705668635089,-717.35798837,0.00027396,2]
[312143336,1705668635099,-1502.40382479,0.00027396,5]
[312143337,1705668635109,-259.93145126,0.00027396,2]
[312143338,1705668635120,-500.0,0.00027397,2]
[312143339,1705668635130,-500.0,0.00027397,2]
[312143340,1705668635140,-500.0,0.00027397,2]
[312143341,1705668635150,-500.0,0.00027397,2]
[312143342,1705668635161,-500.0,0.00027397,2]
[312143343,1705668635171,-500.0,0.00027397,2]
[312143344,1705668635181,-501.72399123,0.00027397,2]
[312143345,1705668635191,-500.0,0.00027397,2]
[312143346,1705668635202,-500.0,0.00027397,14]
[312143347,1705668635212,-500.69125708,0.00027397,2]
[312143348,1705668635222,-500.0,0.00027397,2]
[312143349,1705668635232,-500.0,0.00027397,2]
[312143350,1705668635242,-633.835,0.00027397,2]
[312143351,1705668635252,-500.0,0.00027397,2]
[312143352,1705668635261,-500.0,0.00027397,2]
[312143353,1705668635272,-500.0,0.00027397,2]
[312143354,1705668635282,-500.0,0.00027397,2]
[312143355,1705668635292,-407.97663313,0.00027397,2]
[312143356,1705668635302,-500.0,0.00027397,2]
[312143357,1705668635312,-500.0,0.00027397,2]
[312143358,1705668635322,-187.46119069,0.00027397,2]
[312143359,1705668635332,-504.88440796,0.00027397,2]
[312143360,1705668635342,-595.41759042,0.00027397,2]
[312143361,1705668635352,-500.0,0.00027397,2]
[312143362,1705668635361,-500.0,0.00027397,2]
[312143363,1705668635371,-500.0,0.00027397,2]
[312143364,1705668635381,-500.0,0.00027397,2]
[312143365,1705668635391,-500.0,0.00027397,2]
[312143366,1705668635401,-494.87615425,0.00027397,2]
[312143367,1705668635412,-507.52266502,0.00027397,2]
[312143368,1705668635422,-500.0,0.00027397,2]
[312143369,1705668635432,-500.0,0.00027397,2]
[312143370,1705668635442,-500.0,0.00027397,2]
[312143371,1705668635452,-582.84920971,0.00027397,2]
[312143372,1705668635463,-501.76139814,0.00027397,2]
[312143373,1705668635473,-500.0,0.00027397,2]
[312143374,1705668635482,-500.0,0.00027397,2]
[312143375,1705668635492,-500.0,0.00027397,2]
[312143376,1705668635502,-500.0,0.00027397,2]
[312143377,1705668635511,-1000.0,0.00027397,2]
[312143378,1705668635521,-502.28537969,0.00027397,2]
[312143379,1705668635531,-505.71343342,0.00027397,2]
[312143380,1705668635541,-1002.64129724,0.00027397,2]
[312143381,1705668635551,-212.7852503,0.00027397,2]
[312143382,1705668635561,-735.57,0.00027397,2]
[312143383,1705668635571,-502.48230786,0.00027397,2]
[312143384,1705668635582,-500.0,0.00027397,2]
[312143385,1705668635593,-508.73253819,0.00027397,2]
[312143386,1705668635603,-500.0,0.00027397,2]
[312143387,1705668635613,-500.0,0.00027397,2]
[312143388,1705668635623,-500.0,0.00027397,2]
[312143389,1705668635633,-500.0,0.00027397,2]
[312143390,1705668635644,-500.0,0.00027397,2]
[312143391,1705668635752,-500.0,0.00027397,2]
[312143392,1705668635764,-581.11900681,0.00027397,2]
[312143393,1705668635775,-500.0,0.00027397,2]
[312143394,1705668635786,-503.17847827,0.00027397,2]
[312143395,1705668635796,-500.51110495,0.00027397,2]
[312143396,1705668635805,-500.0,0.00027397,2]
[312143397,1705668635814,-500.0,0.00027397,2]
[312143398,1705668635824,-500.0,0.00027397,2]
[312143399,1705668635835,-600.35289464,0.00027397,2]
[312143400,1705668635846,-500.0,0.00027397,2]
[312143401,1705668635856,-500.0,0.00027397,2]
[312143402,1705668635867,-221.96221791,0.00027397,2]
[312143403,1705668635877,-542.74265134,0.00027397,2]
[312143404,1705668635888,-500.0,0.00027397,2]
[312143405,1705668635899,-500.0,0.00027397,2]
[312143406,1705668635909,-744.71,0.00027397,2]
[312143407,1705668635920,-500.0,0.00027397,2]
[312143408,1705668635930,-200.0,0.00027397,2]
[312143409,1705668635941,-500.0,0.00027397,2]
[312143410,1705668635955,-500.0,0.00027397,2]
[312143411,1705668635966,-774.52,0.00027397,2]
[312143412,1705668635976,-500.0,0.00027397,2]
[312143413,1705668635986,-500.0,0.00027397,2]
[312143414,1705668635999,-500.0,0.00027397,2]
[312143415,1705668636009,-500.0,0.00027397,2]
[312143416,1705668636019,-500.0,0.00027397,2]
[312143417,1705668636029,-500.0,0.00027397,2]
[312143418,1705668636039,-500.0,0.00027397,2]
[312143419,1705668636049,-500.0,0.00027397,2]
[312143420,1705668636061,-500.0,0.00027397,2]
[312143421,1705668636071,-500.0,0.00027397,2]
[312143422,1705668636082,-526.27,0.00027397,2]
[312143423,1705668636092,-706.61,0.00027397,2]
[312143424,1705668636105,-502.88614467,0.00027397,2]
[312143425,1705668636114,-500.0,0.00027397,2]
[312143426,1705668636124,-500.0,0.00027397,2]
[312143427,1705668636134,-500.0,0.00027397,2]
[312143428,1705668636144,-500.0,0.00027397,2]
[312143429,1705668636154,-500.0,0.00027397,2]
[312143430,1705668636164,-500.0,0.00027397,2]
[312143431,1705668636174,-504.20658948,0.00027397,2]
[312143432,1705668636184,-500.0,0.00027397,2]
[312143433,1705668636194,-500.76349209,0.00027397,2]
[312143434,1705668636204,-500.0,0.00027397,2]
[312143435,1705668636214,-500.0,0.00027397,2]
[312143436,1705668636223,-500.0,0.00027397,2]
[312143437,1705668636234,-500.0,0.00027397,2]
[312143438,1705668636244,-500.0,0.00027397,2]
[312143439,1705668636253,-500.0,0.00027397,2]
[312143440,1705668636264,-1885.75,0.00027397,2]
[312143441,1705668636274,-662.39,0.00027397,2]
[312143442,1705668636285,-503.89430269,0.00027397,2]
[312143443,1705668636295,-635.96694651,0.00027397,2]
[312143444,1705668636306,-500.0,0.00027397,2]
[312143445,1705668636316,-500.0,0.00027397,2]
[312143446,1705668636327,-500.0,0.00027397,2]
[312143447,1705668636337,-5828.06,0.00027397,2]
[312143448,1705668636347,-500.0,0.00027397,2]
[312143449,1705668636358,-501.64392268,0.00027397,2]
[312143450,1705668636368,-500.0,0.00027397,2]
[312143451,1705668636379,-2373.35,0.00027397,2]
[312143452,1705668636388,-656.18635474,0.00027397,2]
[312143459,1705668640100,-390.66364526,0.00027397,2]
[312143460,1705668640111,-500.0,0.00027397,2]
[312143461,1705668640121,-500.0,0.00027397,2]
[312143462,1705668640131,-500.0,0.00027397,2]
[312143463,1705668640141,-296.75355326,0.00027397,2]
[312143465,1705668640150,-1.87135752,0.00027397,2]
[312143466,1705668640164,-498.12864248,0.00027397,2]
[312143467,1705668640174,-500.0,0.00027397,2]
[312143468,1705668640184,-500.0,0.00027397,2]
[312143469,1705668640194,-500.0,0.00027397,2]
[312143470,1705668640204,-500.0,0.00027397,2]
[312143472,1705668640214,-2408.7,0.00027397,2]
[312143474,1705668640225,-1284.57,0.00027397,2]
[312143476,1705668640235,-500.0,0.00027397,2]
[312143478,1705668640245,-667.84,0.00027397,2]
[312143479,1705668640255,-500.0,0.00027397,2]
[312143481,1705668640266,-736.13,0.00027397,2]
[312143483,1705668640276,-1179.6,0.00027397,2]
[312143485,1705668640286,-500.0,0.00027397,2]
[312143486,1705668640296,-500.0,0.00027397,2]
[312143487,1705668640307,-500.0,0.00027397,2]
[312143489,1705668640317,-500.0,0.00027397,2]
[312143491,1705668640327,-500.0,0.00027397,2]
[312143493,1705668640337,-621.5,0.00027397,2]
[312143494,1705668640347,-500.0,0.00027397,2]
[312143496,1705668640357,-500.0,0.00027397,2]
[312143498,1705668640368,-155.0,0.00027397,2]
[312143500,1705668640378,-500.0,0.00027397,2]
[312143502,1705668640388,-500.80353804,0.00027397,2]
[312143504,1705668640398,-1002.68,0.00027397,2]
[312143506,1705668640408,-500.0,0.00027397,2]
[312143507,1705668640417,-500.87491011,0.00027397,2]
[312143509,1705668640427,-500.0,0.00027397,2]
[312143511,1705668640437,-6552.32,0.00027397,2]
[312143513,1705668640447,-500.0,0.00027397,2]
[312143515,1705668640457,-500.0,0.00027397,2]
[312143517,1705668640467,-500.0,0.00027397,2]
[312143519,1705668640477,-558.54840599,0.00027397,2]
[312143521,1705668640487,-12612.74,0.00027397,2]
[312143522,1705668640496,-500.0,0.00027397,2]
[312143524,1705668640506,-927.6,0.00027397,2]
[312143526,1705668640515,-501.94159678,0.00027397,2]
[312143528,1705668640525,-500.0,0.00027397,2]
[312143530,1705668640535,-2287.52,0.00027397,2]
[312143532,1705668640545,-500.0,0.00027397,2]
[312143534,1705668640555,-646.87,0.00027397,2]
[312143535,1705668640565,-500.0,0.00027397,2]
[312143537,1705668640574,-500.0,0.00027397,2]
[312143539,1705668640584,-500.0,0.00027397,2]
[312143540,1705668640594,-507.61838618,0.00027397,2]
[312143541,1705668640604,-500.0,0.00027397,2]
[312143543,1705668640613,-500.0,0.00027397,2]
[312143545,1705668640623,-500.0,0.00027397,2]
[312143546,1705668640633,-500.0,0.00027397,2]
[312143548,1705668640643,-500.0,0.00027397,2]
[312143550,1705668640653,-500.0,0.00027397,2]
[312143552,1705668640663,-1153.69,0.00027397,2]
[312143554,1705668640674,-504.67298462,0.00027397,2]
[312143556,1705668640684,-364.49209463,0.00027397,2]
[312143558,1705668640694,-500.0,0.00027397,2]
[312143559,1705668640703,-500.0,0.00027397,2]
[312143561,1705668640713,-500.0,0.00027397,2]
[312143563,1705668640723,-2400.97,0.00027397,2]
[312143565,1705668640733,-500.0,0.00027397,2]
[312143567,1705668640743,-500.0,0.00027397,2]
[312143569,1705668640753,-908.91,0.00027397,2]
[312143571,1705668640763,-500.0,0.00027397,2]
[312143572,1705668640771,-500.0,0.00027397,2]
[312143574,1705668640780,-500.0,0.00027397,2]
[312143577,1705668640791,-500.0,0.00027397,2]
[312143580,1705668640801,-558.98499272,0.00027397,2]
[312143582,1705668640810,-500.0,0.00027397,2]
[312143585,1705668640820,-500.0,0.00027397,2]
[312143588,1705668640829,-500.0,0.00027397,2]
[312143591,1705668640839,-500.0,0.00027397,2]
[312143594,1705668640850,-500.0,0.00027397,2]
[312143597,1705668640861,-516.26,0.00027397,2]
[312143599,1705668640872,-500.0,0.00027397,2]
[312143601,1705668640882,-523.89688111,0.00027397,2]
[312143604,1705668640893,-500.0,0.00027397,2]
[312143607,1705668640903,-515.92,0.00027397,2]
[312143609,1705668640913,-500.0,0.00027397,2]
[312143611,1705668640923,-500.0,0.00027397,2]
[312143614,1705668640934,-1074.57,0.00027397,2]
[312143616,1705668640944,-500.0,0.0002767,2]
[312143618,1705668640954,-500.0,0.0002767,2]
[312143626,1705668641043,-437.71176257,0.0002767,2]
[312143628,1705668641053,-500.0,0.0002767,2]
[312143630,1705668641065,-407.26021262,0.0002767,2]
[312143632,1705668641075,-500.0,0.0002767,2]
[312143634,1705668641086,-500.0,0.0002767,2]
[312143636,1705668641097,-500.0,0.0002767,2]
[312143638,1705668641107,-500.0,0.0002767,2]
[312143639,1705668641117,-270.72042599,0.0002767,2]
[312143641,1705668641127,-500.0,0.0002767,2]
[312143643,1705668641137,-500.0,0.0002767,2]
[312143645,1705668641147,-500.0,0.0002767,2]
[312143647,1705668641158,-500.0,0.0002767,2]
[312143649,1705668641167,-500.0,0.0002767,2]
[312143651,1705668641177,-500.0,0.0002767,2]
[312143653,1705668641187,-500.0,0.0002767,2]
[312143654,1705668641197,-236.58355663,0.00027671,2]
[312143656,1705668641207,-500.0,0.00027671,2]
[312143658,1705668641217,-500.0,0.00027671,2]
[312143660,1705668641227,-500.0,0.00027671,2]
[312143662,1705668641237,-500.0,0.00027671,2]
[312143664,1705668641246,-500.0,0.00027671,2]
[312143666,1705668641256,-500.0,0.00027671,2]
[312143667,1705668641266,-500.0,0.00027671,14]
[312143669,1705668641276,-500.0,0.00027671,2]
[312143671,1705668641286,-501.42981573,0.00027671,2]
[312143673,1705668641296,-500.0,0.00027671,2]
[312143675,1705668641307,-500.0,0.00027671,2]
[312143677,1705668641317,-500.0,0.00027671,2]
[312143678,1705668641327,-500.0,0.00027671,2]
[312143680,1705668641339,-500.0,0.00027671,2]
[312143682,1705668641349,-500.0,0.00027671,2]
[312143684,1705668641360,-500.0,0.00027671,2]
[312143686,1705668641370,-500.0,0.00027671,2]
[312143688,1705668641380,-500.0,0.00027671,2]
[312143690,1705668641390,-500.70177559,0.00027671,2]
[312143691,1705668641401,-500.0,0.00027671,2]
[312143693,1705668641412,-152.65631685,0.00027671,2]
[312143695,1705668641422,-500.0,0.00027671,2]
[312143697,1705668641432,-500.0,0.00027671,2]
[312143699,1705668641441,-500.0,0.00027671,2]
[312143701,1705668641451,-500.0,0.00027671,2]
[312143702,1705668641461,-500.0,0.00027671,2]
[312143704,1705668641471,-500.0,0.00027671,2]
[312143706,1705668641481,-735.57,0.00027671,2]
[312143708,1705668641494,-503.69616097,0.00027671,2]
[312143710,1705668641504,-500.0,0.00027671,2]
[312143712,1705668641515,-507.23378468,0.00027671,2]
[312143714,1705668641525,-500.0,0.00027671,2]
[312143715,1705668641536,-500.0,0.00027671,2]
[312143717,1705668641547,-500.0,0.00027671,2]
[312143719,1705668641558,-500.0,0.00027671,2]
[312143721,1705668641568,-291.68044868,0.00027671,2]
[312143723,1705668641578,-500.0,0.00027671,2]
[312143725,1705668641589,-500.0,0.00027671,2]
[312143727,1705668641600,-500.0,0.00027671,2]
[312143729,1705668641610,-500.0,0.00027671,2]
[312143731,1705668641620,-500.0,0.00027671,2]
[312143732,1705668641629,-744.71,0.00027671,2]
[312143734,1705668641639,-500.0,0.00027671,2]
[312143736,1705668641649,-500.0,0.00027671,2]
[312143738,1705668641660,-500.0,0.00027671,2]
[312143740,1705668641670,-774.52,0.00027671,2]
[312143742,1705668641679,-500.0,0.00027671,2]
[312143744,1705668641690,-500.0,0.00027671,2]
[312143746,1705668641700,-500.0,0.00027671,2]
[312143747,1705668641710,-500.0,0.00027671,2]
[312143749,1705668641719,-500.0,0.00027671,2]
[312143751,1705668641730,-500.0,0.00027671,2]
[312143753,1705668641740,-500.0,0.00027671,2]
[312143755,1705668641750,-500.0,0.00027671,2]
[312143757,1705668641760,-500.0,0.00027671,2]
[312143759,1705668641770,-500.0,0.00027671,2]
[312143760,1705668641780,-526.27,0.00027671,2]
[312143762,1705668641790,-706.61,0.00027671,2]
[312143764,1705668641799,-500.0,0.00027671,2]
[312143766,1705668641809,-500.0,0.00027671,2]
[312143767,1705668641819,-500.0,0.00027671,2]
[312143769,1705668641829,-500.0,0.00027671,2]
[312143771,1705668641840,-500.0,0.00027671,2]
[312143773,1705668641850,-500.41281024,0.00027671,2]
[312143775,1705668641859,-500.0,0.00027671,2]
[312143777,1705668641868,-500.0,0.00027671,2]
[312143778,1705668641878,-500.0,0.00027671,2]
[312143781,1705668641892,-500.0,0.00027671,2]
[312143783,1705668641907,-518.51183488,0.00027671,2]
[312143785,1705668641922,-500.0,0.00027671,2]
[312143788,1705668641937,-1885.75,0.00027671,2]
[312143790,1705668641950,-662.39,0.00027671,2]
[312143792,1705668641966,-500.0,0.00027671,2]
[312143794,1705668641980,-500.72707164,0.00027671,2]
[312143796,1705668641995,-500.0,0.00027671,2]
[312143798,1705668642009,-5828.06,0.00027671,2]
[312143801,1705668642024,-314.80329528,0.00027671,2]
[312143803,1705668642037,-500.0,0.00027671,2]
[312143805,1705668642053,-2373.35,0.00027671,2]
[312143807,1705668642067,-1046.85,0.00027671,2]
[312143809,1705668642078,-500.0,0.00027671,2]
[312143812,1705668642094,-500.0,0.00027671,2]
[312143814,1705668642107,-502.11256067,0.00027671,2]
[312143816,1705668642120,-500.0,0.00027671,2]
[312143818,1705668642133,-501.32970261,0.00027671,2]
[312143820,1705668642146,-500.0,0.00027671,2]
[312143823,1705668642161,-500.0,0.00027671,2]
[312143825,1705668642173,-500.0,0.00027671,2]
[312143826,1705668642184,-2408.7,0.00027671,2]
[312143829,1705668642200,-1284.57,0.00027671,2]
[312143831,1705668642213,-500.0,0.00027671,2]
[312143833,1705668642229,-667.84,0.00027671,2]